fUST/lending_fUST_20260226
["ID","MTS","AMOUNT","RATE_DAILY","PERIOD"]
[406685586,1772077752698,-500.0,0.00013698,2]
[406685587,1772077752721,-500.0,0.00013698,2]
[406685588,1772077752741,-500.0,0.00013698,2]
[406685589,1772077752762,-500.0,0.00013698,2]
[406685590,1772077752942,-500.0,0.00013698,2]
[406685591,1772077752963,-449.08727091,0.00013698,2]
[406685592,1772077752982,-904.143225,0.00013698,2]
[406685593,1772077753003,-2421.623781,0.00013699,2]
[406685594,1772077753024,-500.0,0.00013699,2]
[406685595,1772077753047,-501.75096863,0.00013699,2]
[406685596,1772077753067,-178.17438373,0.00013699,2]
[406685597,1772077753090,-500.0,0.00013699,2]
[406685598,1772077753109,-500.0,0.00013699,2]
[406685599,1772077753130,-500.66325347,0.00013699,2]
[406685600,1772077753150,-394.35013566,0.00013699,2]
[406685601,1772077753171,-500.0,0.00013699,2]
[406685602,1772077753195,-500.0,0.00013699,2]
[406685603,1772077753215,-325.88963744,0.00013699,2]
[406685604,1772077753236,-151.70703937,0.00013699,2]
[406685605,1772077753258,-500.0,0.00013699,2]
[406685606,1772077753281,-569.65079634,0.00013699,2]
[406685607,1772077753302,-232.80896967,0.00013699,2]
[406685608,1772077753702,-267.19103033,0.00013699,2]
[406685609,1772077753722,-492.61,0.000137,2]
[406685610,1772077753743,-492.61,0.000137,2]
[406685611,1772077753762,-492.61,0.000137,2]
[406685612,1772077753783,-116.11684789,0.000137,2]
[406685613,1772077758100,-13527.46742163,0.00012872,2]
[406685614,1772077766093,-3862.35203838,0.00012872,2]
[406685615,1772077768097,-1524.80086298,0.00012872,2]
[406685640,1772077832324,-500.0,0.00012871,2]
[406685642,1772077832333,-500.0,0.00012871,2]
[406685644,1772077832342,-192.18933296,0.00012871,2]
[406685651,1772077832419,-307.81066704,0.00012871,2]
[406685653,1772077832432,-1200.0,0.00012871,2]
[406685654,1772077832441,-300.0,0.00012871,2]
[406685655,1772077832451,-602.0,0.00012871,2]
[406685656,1772077832460,-21939.70369279,0.00012872,2]
[406685670,1772077840314,-4590.73771589,0.00012872,2]
[406685671,1772077840326,-4554.93826833,0.00012872,2]
[406685672,1772077840336,-2724.88754405,0.000129,2]
[406685674,1772077840346,-210.1464525,0.00012932,2]
[406685675,1772077840355,-500.0,0.00013273,2]
[406685677,1772077840365,-500.0,0.00013273,2]
[406685680,1772077840376,-500.0,0.00013273,2]
[406685681,1772077840386,-511.86275612,0.00013273,2]
[406685682,1772077840396,-358.02021966,0.00013273,2]
[406685683,1772077840405,-275.76959966,0.00013673,2]
[406685684,1772077840415,-500.0,0.00013699,2]
[406685685,1772077840425,-500.0,0.00013699,2]
[406685686,1772077840434,-500.0,0.00013699,2]
[406685687,1772077840443,-537.49838845,0.00013699,2]
[406685688,1772077840454,-222.01059848,0.00013699,2]
[406685689,1772077840463,-376.49315211,0.000137,2]
[406685690,1772077840473,-492.61,0.000137,2]
[406685691,1772077840483,-492.61,0.000137,2]
[406685692,1772077840493,-492.61,0.000137,2]
[406685693,1772077840502,-492.61,0.000137,2]
[406685694,1772077840512,-492.61,0.000137,2]
[406685695,1772077840527,-492.61,0.000137,2]
[406685697,1772077840537,-492.64,0.000137,2]
[406685699,1772077840547,-1000.0,0.000137,2]
[406685701,1772077840556,-1000.0,0.000137,2]
[406685703,1772077840566,-1000.0,0.000137,2]
[406685704,1772077840576,-1000.0,0.000137,2]
[406685705,1772077840586,-975.10284838,0.000137,2]
[406685706,1772077840596,-179.71526603,0.000137,2]
[406685707,1772077840607,-151.0,0.000137,2]
[406685708,1772077840618,-151.0,0.000137,2]
[406685709,1772077840628,-151.0,0.000137,2]
[406685710,1772077840638,-151.0,0.000137,2]
[406685711,1772077840649,-151.0,0.000137,2]
[406685712,1772077840659,-151.0,0.000137,2]
[406685713,1772077840670,-264.23220587,0.000137,2]
[406685714,1772077840681,-500.0,0.0001382,2]
[406685715,1772077840690,-524.79300291,0.0001382,2]
[406685716,1772077840701,-1000.0,0.00013821,2]
[406685717,1772077840711,-1000.77568333,0.00013821,2]
[406685718,1772077840722,-177.17016237,0.00013821,2]
[406685719,1772077840731,-1000.0,0.00013821,2]
[406685720,1772077840741,-349.70674527,0.00013821,2]
[406685721,1772077840752,-1000.0,0.00013821,2]
[406685722,1772077840762,-1000.0,0.00013821,2]
[406685723,1772077840772,-500.0,0.00013821,2]
[406685724,1772077840783,-420.0,0.00014117,2]
[406685725,1772077840796,-1068.0,0.00014158,2]
[406685726,1772077840807,-1386.74825397,0.00014175,2]
[406685727,1772077840817,-2525.71859594,0.00014175,2]
[406685729,1772077840826,-500.0,0.00014246,2]
[406685730,1772077840836,-500.0,0.00014247,2]
[406685731,1772077840846,-906.52507898,0.00014247,2]
[406685732,1772077840856,-500.0,0.00014247,2]
[406685733,1772077840865,-334.30582629,0.00014247,2]
[406685734,1772077840875,-1000.0,0.00014247,2]
[406685735,1772077840884,-904.143225,0.00014251,2]
[406685736,1772077840896,-168.3555667,0.00014268,2]
[406685737,1772077840906,-500.0,0.00014368,2]
[406685738,1772077840918,-447.79548405,0.00014368,2]
[406685739,1772077840928,-838.66764809,0.00014368,2]
[406685740,1772077840938,-1500.0,0.00014368,2]
[406685741,1772077840948,-739.23748693,0.00014368,2]
[406685742,1772077840958,-519.59613662,0.00014521,2]
[406685743,1772077840968,-1500.0,0.00014795,2]
[406685744,1772077840979,-904.143225,0.00014805,2]
[406685745,1772077840988,-314.00062622,0.00014872,2]
[406685746,1772077840998,-500.0,0.00014916,2]
[406685747,1772077841008,-700.71147109,0.00014916,2]
[406685748,1772077841018,-2730.37598669,0.00015023,2]
[406685749,1772077841029,-195.987534,0.00015068,2]
[406685750,1772077841040,-260.93078961,0.00015342,2]
[406685751,1772077841050,-904.143225,0.00015358,2]
[406685752,1772077841060,-500.0,0.00015464,2]
[406685753,1772077841069,-587.0,0.00015483,2]
[406685754,1772077841080,-1179.22679288,0.000157,30]
[406685755,1772077841090,-10820.34977656,0.000157,2]
[406685756,1772077841100,-904.143225,0.00015912,2]
[406685757,1772077841114,-259.19,0.00016,2]
[406685758,1772077841124,-500.0,0.00016031,2]
[406685759,1772077841134,-500.0,0.00016031,2]
[406685760,1772077841144,-500.0,0.00016031,2]
[406685761,1772077841155,-250.0,0.00016051,2]
[406685762,1772077841165,-500.0,0.00016322,2]
[406685763,1772077841175,-250.27638143,0.00016438,2]
[406685764,1772077841186,-151.0,0.00016634,2]
[406685765,1772077841197,-151.0,0.00016634,2]
[406685766,1772077841207,-151.0,0.00016634,2]
[406685767,1772077841218,-151.0,0.00016872,2]
[406685768,1772077841227,-1957.856,0.00016872,2]
[406685769,1772077841236,-151.0,0.00016872,2]
[406685770,1772077841247,-151.0,0.00016872,2]
[406685771,1772077841257,-151.0,0.00016872,2]
[406685772,1772077841267,-151.0,0.00016872,2]
[406685773,1772077841276,-151.0,0.00016872,2]
[406685774,1772077841286,-151.0,0.00016872,2]
[406685775,1772077841296,-500.0,0.00016872,2]
[406685776,1772077841306,-250.0,0.00016872,2]
[406685777,1772077841315,-194.72792766,0.00016872,2]
[406685778,1772077841325,-250.0,0.00016872,2]
[406685779,1772077841335,-151.0,0.00016872,2]
[406685780,1772077841345,-500.0,0.00016872,2]
[406685781,1772077841354,-250.0,0.00016872,2]
[406685782,1772077841364,-250.0,0.00016872,2]
[406685783,1772077841374,-151.0,0.00016872,2]
[406685784,1772077841383,-500.0,0.00016872,2]
[406685785,1772077841393,-250.0,0.00016872,2]
[406685786,1772077841402,-250.0,0.00016872,2]
[406685787,1772077841412,-500.0,0.00016872,2]
[406685788,1772077841421,-500.0,0.00016872,2]
[406685789,1772077841430,-250.0,0.00016872,2]
[406685790,1772077841440,-250.0,0.00016872,2]
[406685791,1772077841449,-151.0,0.00016872,2]
[406685792,1772077841459,-500.0,0.00016872,2]
[406685793,1772077841468,-500.0,0.00016872,2]
[406685794,1772077841478,-250.0,0.00016872,2]
[406685795,1772077841487,-151.0,0.00016872,2]
[406685796,1772077841497,-500.0,0.00016872,2]
[406685797,1772077841506,-250.0,0.00016872,2]
[406685798,1772077841515,-250.0,0.00016872,2]
[406685799,1772077841525,-151.0,0.00016872,2]
[406685800,1772077841535,-151.0,0.00016872,2]
[406685801,1772077841544,-500.0,0.00016872,2]
[406685802,1772077841554,-250.0,0.00016872,2]
[406685803,1772077841564,-250.0,0.00016872,2]
[406685804,1772077841573,-250.0,0.00016872,2]
[406685805,1772077841583,-189.91871105,0.00016872,2]
[406685806,1772077841592,-155.25182626,0.00016872,2]
[406685807,1772077841602,-500.0,0.00016872,2]
[406685808,1772077841611,-250.0,0.00016872,2]
[406685809,1772077841621,-194.72792766,0.00016872,2]
[406685810,1772077841630,-250.0,0.00016872,2]
[406685811,1772077841640,-250.0,0.00016872,2]
[406685812,1772077841650,-250.0,0.00016872,2]
[406685813,1772077841661,-201.93286099,0.00016872,2]
[406685814,1772077841670,-250.0,0.00016872,2]
[406685815,1772077841680,-500.0,0.00016872,2]
[406685816,1772077841689,-250.0,0.00016872,2]
[406685817,1772077841699,-209.40437684,0.00016872,2]
[406685818,1772077841709,-250.0,0.00016872,2]
[406685819,1772077841719,-250.0,0.00016872,2]
[406685820,1772077841729,-500.0,0.00016872,2]
[406685821,1772077841738,-250.0,0.00016872,2]
[406685822,1772077841748,-217.15233878,0.00016872,2]
[406685823,1772077841757,-250.0,0.00016872,2]
[406685824,1772077841767,-250.0,0.00016872,2]
[406685825,1772077841777,-500.0,0.00016872,2]
[406685826,1772077841786,-500.0,0.00016872,2]
[406685827,1772077841795,-250.0,0.00016872,2]
[406685828,1772077841805,-225.18697532,0.00016872,2]
[406685829,1772077841814,-250.0,0.00016872,2]
[406685830,1772077841824,-250.0,0.00016872,2]
[406685831,1772077841833,-500.0,0.00016872,2]
[406685832,1772077841842,-500.0,0.00016872,2]
[406685833,1772077841851,-250.0,0.00016872,2]
[406685834,1772077841861,-151.0,0.00016872,2]
[406685835,1772077841871,-233.51889341,0.00016872,2]
[406685836,1772077841880,-250.0,0.00016872,2]
[406685837,1772077841889,-250.0,0.00016872,2]
[406685838,1772077841899,-500.0,0.00016872,2]
[406685839,1772077841909,-500.0,0.00016872,2]
[406685840,1772077841919,-151.0,0.00016872,2]
[406685841,1772077841928,-250.0,0.00016872,2]
[406685842,1772077841938,-242.15909246,0.00016872,2]
[406685843,1772077841947,-500.0,0.00016872,2]
[406685844,1772077841957,-500.0,0.00016872,2]
[406685845,1772077841966,-250.0,0.00016872,2]
[406685846,1772077841975,-151.0,0.00016872,2]
[406685847,1772077841985,-250.0,0.00016872,2]
[406685848,1772077841995,-251.11897888,0.00016872,2]
[406685849,1772077842008,-500.0,0.00016872,2]
[406685850,1772077842017,-250.0,0.00016872,2]
[406685851,1772077842027,-151.0,0.00016872,2]
[406685852,1772077842036,-250.0,0.00016872,2]
[406685853,1772077842046,-260.4103811,0.00016872,2]
[406685854,1772077842056,-500.0,0.00016872,2]
[406685855,1772077842066,-2579.17784983,0.00016872,2]
[406685856,1772077842075,-151.0,0.00016872,2]
[406685857,1772077842085,-250.0,0.00016872,2]
[406685858,1772077842095,-270.0455652,0.00016872,2]
[406685859,1772077842108,-500.0,0.00016872,2]
[406685860,1772077842126,-151.0,0.00016872,2]
[406685861,1772077842327,-250.0,0.00016872,2]
[406685862,1772077842336,-280.03725112,0.00016872,2]
[406685863,1772077842346,-500.0,0.00016872,2]
[406685864,1772077842355,-151.0,0.00016872,2]
[406685865,1772077842364,-250.0,0.00016872,2]
[406685866,1772077842374,-500.0,0.00016872,2]
[406685867,1772077842383,-290.39862941,0.00016872,2]
[406685868,1772077842392,-500.0,0.00016872,2]
[406685869,1772077842401,-151.0,0.00016872,2]
[406685870,1772077842410,-500.0,0.00016872,2]
[406685871,1772077842419,-301.1433787,0.00016872,2]
[406685872,1772077842428,-500.0,0.00016872,2]
[406685873,1772077842437,-151.0,0.00016872,2]
[406685874,1772077842447,-500.0,0.00016872,2]
[406685875,1772077842458,-151.0,0.00016872,2]
[406685876,1772077842467,-500.0,0.00016872,2]
[406685877,1772077842476,-151.0,0.00016872,2]
[406685878,1772077842486,-500.0,0.00016872,2]
[406685879,1772077842497,-151.0,0.00016872,2]
[406685880,1772077842506,-500.0,0.00016872,2]
[406685881,1772077842515,-151.0,0.00016872,2]
[406685882,1772077842525,-500.0,0.00016872,2]
[406685883,1772077842534,-151.0,0.00016872,2]
[406685884,1772077842543,-500.0,0.00016872,2]
[406685885,1772077842552,-151.0,0.00016872,2]
[406685886,1772077842562,-500.0,0.00016872,2]
[406685887,1772077842571,-151.0,0.00016872,2]
[406685888,1772077842580,-500.0,0.00016872,2]
[406685889,1772077842588,-250.0,0.00016872,2]
[406685890,1772077842598,-151.0,0.00016872,2]
[406685891,1772077842607,-500.0,0.00016872,2]
[406685892,1772077842619,-250.0,0.00016872,2]
[406685893,1772077842630,-151.0,0.00016872,2]
[406685894,1772077842639,-500.0,0.00016872,2]
[406685895,1772077842648,-250.0,0.00016872,2]
[406685896,1772077842657,-151.0,0.00016872,2]
[406685897,1772077842667,-204.24076977,0.00016872,2]
[406685898,1772077842676,-250.0,0.00016872,2]
[406685899,1772077842686,-152.72542208,0.00016872,2]
[406685900,1772077842696,-250.0,0.00016872,2]
[406685901,1772077842705,-250.0,0.00016872,2]
[406685902,1772077842715,-250.0,0.00016872,2]
[406685903,1772077842724,-250.0,0.00016872,2]
[406685904,1772077842733,-312.54556865,0.00016872,2]
[406685905,1772077842742,-250.0,0.00016872,2]
[406685906,1772077842752,-250.0,0.00016872,2]
[406685907,1772077842761,-250.0,0.00016872,2]
[406685908,1772077842771,-250.0,0.00016872,2]
[406685909,1772077842780,-250.0,0.00016872,2]
[406685910,1772077842789,-250.0,0.00016872,2]
[406685911,1772077842799,-250.0,0.00016872,2]
[406685912,1772077842809,-361.89902684,0.00016872,2]
[406685913,1772077842818,-2030.296672,0.00016927,2]
[406685914,1772077842828,-2105.41764886,0.00016982,2]
[406685915,1772077842838,-823.0,0.00016982,2]
[406685916,1772077842847,-500.0,0.00016986,2]
[406685917,1772077842857,-3994.24564111,0.00016988,2]
[406685918,1772077842866,-500.0,0.00016989,2]
[406685919,1772077842876,-500.0,0.00016989,2]
[406685920,1772077842886,-500.0,0.00016989,2]
[406685921,1772077842895,-500.0,0.00016989,2]
[406685922,1772077842905,-500.0,0.00016989,2]
[406685923,1772077842913,-924.11829555,0.00017,2]
[406685924,1772077842923,-1667.70331698,0.00017037,2]
[406685925,1772077842931,-2674.60743027,0.0001742,2]
[406685926,1772077842940,-500.0,0.00017492,2]
[406685927,1772077842950,-430.45151794,0.00017492,2]
[406685928,1772077842959,-176.963,0.00017699,2]
[406685929,1772077842968,-151.31898444,0.00017808,2]
[406685931,1772077842977,-163.0,0.000179,2]
[406685932,1772077842986,-163.0,0.000179,2]
[406685933,1772077842995,-2773.56790519,0.00017968,2]
[406685934,1772077843003,-163.0,0.000185,2]
[406685935,1772077843013,-163.90037459,0.000185,2]
[406685936,1772077843022,-2876.18991768,0.00018516,2]
[406685937,1772077843031,-3414.40935032,0.00018529,2]
[406685938,1772077843040,-1152.0,0.00018626,2]
[406685939,1772077843049,-409.79742745,0.00018872,2]
[406685940,1772077843058,-163.0,0.000189,2]
[406685941,1772077843067,-163.0,0.000189,2]
[406685942,1772077843076,-151.0,0.0001899,2]
[406685943,1772077843086,-151.0,0.0001899,2]
[406685944,1772077843095,-240.0,0.0001899,2]
[406685945,1772077843107,-240.0,0.0001899,2]
[406685946,1772077843118,-240.0,0.0001899,2]
[406685948,1772077843127,-240.0,0.0001899,2]
[406685950,1772077843139,-151.0,0.0001899,2]
[406685952,1772077843149,-100000.0,0.0001899,2]
[406685954,1772077843159,-715.0,0.0001904,2]
[406685955,1772077843168,-2982.60894464,0.00019064,2]
[406685956,1772077843179,-214.27929197,0.00019178,2]
[406685957,1772077843188,-385.70272555,0.00019178,2]
[406685958,1772077843198,-685.69373431,0.00019178,2]
[406685959,1772077843207,-643.0890285,0.00019178,2]
[406685960,1772077843217,-1157.5602513,0.00019178,2]
[406685962,1772077843226,-2057.88489119,0.00019178,2]
[406685963,1772077843236,-3215.44514249,0.00019178,2]
[406685965,1772077843246,-4630.24100519,0.00019178,2]
[406685966,1772077843255,-430.34377519,0.00019178,2]
[406685967,1772077843264,-199.54015378,0.00019178,2]
[406685968,1772077843274,-359.17227681,0.00019178,2]
[406685969,1772077843283,-638.52849211,0.00019178,2]
[406685970,1772077843292,-151.0,0.00019178,2]
[406685971,1772077843302,-151.0,0.00019178,2]
[406685972,1772077843312,-168.0,0.00019267,2]
[406685973,1772077843322,-151.0,0.000193,2]
[406685974,1772077843332,-786.0,0.000193,2]
[406685975,1772077843341,-637.0,0.00019326,2]
[406685976,1772077843351,-2181.0,0.00019326,2]
[406685977,1772077843361,-1386.0,0.00019326,2]
[406685978,1772077843370,-728.0,0.00019326,2]
[406685979,1772077843379,-430.0,0.00019326,2]
[406685980,1772077843389,-544.16,0.00019326,2]
[406685981,1772077843399,-247.0927,0.00019339,30]
[406685982,1772077843408,-247.0427,0.00019339,30]
[406685983,1772077843418,-403.0,0.0001936,2]
[406685984,1772077843428,-715.0,0.0001936,2]
[406685985,1772077843437,-715.0,0.0001936,2]
[406685986,1772077843447,-39731.24078836,0.00019498,2]
[406685988,1772077843456,-3469.99708869,0.000195,2]
[406685989,1772077843467,-353.07524553,0.00019502,2]
[406685991,1772077843509,-168.76090307,0.00019502,2]
[406685992,1772077843518,-2260.04879944,0.00019504,2]
[406685993,1772077843529,-435.0,0.00019504,2]
[406686001,1772077844306,-250.0,0.00016872,2]
[406686002,1772077844315,-48.42467709,0.00016872,2]
[406686003,1772077845252,-2724.88754401,0.00014905,2]
[406686004,1772077845261,-201.57532291,0.00016872,2]
[406686005,1772077845271,-250.0,0.00016872,2]
[406686006,1772077845280,-250.0,0.00016872,2]
[406686007,1772077845289,-250.0,0.00016872,2]
[406686008,1772077845299,-250.0,0.00016872,2]
[406686009,1772077845308,-250.0,0.00016872,2]
[406686010,1772077845317,-250.0,0.00016872,2]
[406686011,1772077845326,-250.0,0.00016872,2]
[406686012,1772077845335,-250.0,0.00016872,2]
[406686013,1772077845345,-250.0,0.00016872,2]
[406686014,1772077845355,-250.0,0.00016872,2]
[406686015,1772077845364,-250.0,0.00016872,2]
[406686016,1772077845373,-644.79446246,0.00016872,2]
[406686017,1772077845382,-250.0,0.00016872,2]
[406686018,1772077845392,-250.0,0.00016872,2]
[406686019,1772077845402,-194719.03430359,0.00019504,2]
[406686020,1772077845412,-110992.56798638,0.00019504,2]
[406686021,1772077845421,-151.0,0.00019504,2]
[406686022,1772077845430,-151.0,0.00019504,2]
[406686023,1772077845440,-151.0,0.00019504,2]
[406686024,1772077845449,-151.0,0.00019504,2]
[406686025,1772077845458,-151.0,0.00019504,2]
[406686026,1772077845468,-151.0,0.00019504,2]
[406686027,1772077845477,-151.0,0.00019504,2]
[406686028,1772077845487,-240.0,0.00019504,2]
[406686029,1772077845496,-240.0,0.00019504,2]
[406686030,1772077845505,-240.0,0.00019504,2]
[406686031,1772077845515,-240.0,0.00019504,2]
[406686032,1772077845525,-240.0,0.00019504,2]
[406686033,1772077845534,-240.0,0.00019504,2]
[406686034,1772077845544,-240.0,0.00019504,2]
[406686035,1772077845554,-240.0,0.00019504,2]
[406686036,1772077845563,-151.0,0.00019504,2]
[406686037,1772077845572,-151.0,0.00019504,2]
[406686038,1772077845583,-151.0,0.00019504,2]
[406686039,1772077845592,-151.0,0.00019504,2]
[406686040,1772077845603,-628.21,0.00019504,2]
[406686041,1772077845613,-628.21,0.00019504,2]
[406686042,1772077845623,-628.21,0.00019504,2]
[406686043,1772077845633,-628.21,0.00019504,2]
[406686044,1772077845644,-628.21,0.00019504,2]
[406686045,1772077845653,-628.21,0.00019504,2]
[406686046,1772077845663,-628.21,0.00019504,2]
[406686047,1772077845674,-628.21,0.00019504,2]
[406686048,1772077845683,-628.21,0.00019504,2]
[406686049,1772077845693,-628.21,0.00019504,2]
[406686050,1772077845702,-628.21,0.00019504,2]
[406686051,1772077845711,-628.21,0.00019504,2]
[406686052,1772077845720,-628.21,0.00019504,2]
[406686053,1772077845731,-628.21,0.00019504,2]
[406686054,1772077845740,-628.21,0.00019504,2]
[406686055,1772077845749,-628.21,0.00019504,2]
[406686056,1772077845759,-628.21,0.00019504,2]
[406686057,1772077845768,-628.21,0.00019504,2]
[406686058,1772077845777,-628.21,0.00019504,2]
[406686059,1772077845787,-628.21,0.00019504,2]
[406686060,1772077845797,-628.21,0.00019504,2]
[406686061,1772077845806,-628.21,0.00019504,2]
[406686062,1772077845815,-628.21,0.00019504,2]
[406686063,1772077845826,-628.21,0.00019504,2]
[406686064,1772077845835,-628.21,0.00019504,2]
[406686065,1772077845844,-628.21,0.00019504,2]
[406686066,1772077845853,-628.21,0.00019504,2]
[406686067,1772077845863,-628.21,0.00019504,2]
[406686068,1772077845872,-628.21,0.00019504,2]
[406686069,1772077845882,-628.21,0.00019504,2]
[406686070,1772077845891,-628.21,0.00019504,2]
[406686071,1772077845900,-628.21,0.00019504,2]
[406686072,1772077845909,-628.21,0.00019504,2]
[406686073,1772077845918,-628.21,0.00019504,2]
[406686074,1772077845927,-660.95,0.00019504,2]
[406686075,1772077845936,-168.3555667,0.00019535,2]
[406686076,1772077845946,-163.0,0.000196,3]
[406686077,1772077845955,-163.0,0.000196,3]
[406686078,1772077845965,-3092.96547559,0.00019612,2]
[406686080,1772077845974,-195.987534,0.00019635,2]
[406686081,1772077845983,-3149.9240325,0.00019671,2]
[406686082,1772077845992,-2005.2755373,0.00019671,2]
[406686083,1772077846001,-807.7412117,0.00019671,2]
[406686084,1772077846010,-505.9257715,0.00019671,2]
[406686086,1772077846019,-306949.3007923,0.000198,2]
[406686087,1772077846028,-151.0,0.000198,2]
[406686088,1772077846037,-151.0,0.000198,2]
[406686089,1772077846046,-151.0,0.000198,2]
[406686090,1772077846056,-240.0,0.000198,2]
[406686091,1772077846065,-240.0,0.000198,2]
[406686092,1772077846075,-240.0,0.000198,2]
[406686093,1772077846084,-240.0,0.000198,2]
[406686094,1772077846094,-151.0,0.000198,2]
[406686095,1772077846105,-151.0,0.000198,2]
[406686096,1772077846118,-769.07648371,0.00019807,5]
[406686097,1772077846128,-160.0,0.00019815,5]
[406686098,1772077846137,-66792.78709696,0.000199,2]
[406686099,1772077846146,-3027.49368103,0.00019903,39]
[406686100,1772077846157,-547.7280467,0.00019929,35]
[406686101,1772077846166,-689.08511609,0.00019929,35]
[406686102,1772077846175,-304175.45558177,0.0002,2]
[406686103,1772077846189,-8584.73007871,0.0002,2]
[406686104,1772077846199,-1000.0,0.0002,2]
[406686105,1772077846208,-158.0,0.0002,20]
[406686106,1772077846217,-199.0,0.0002,2]
[406686107,1772077846227,-1000.0,0.0002,2]
[406686108,1772077846236,-373.86351765,0.0002,2]
[406686109,1772077846245,-8933.87093608,0.0002,120]
[406686110,1772077846254,-23000.0,0.0002,2]
[406686111,1772077846264,-203.9635079,0.0002,2]
[406686112,1772077846273,-1380.01994144,0.0002,3]
[406686113,1772077846283,-814.20052407,0.0002,120]
[406686114,1772077846292,-446565.50275445,0.0002,2]
[406686115,1772077847210,-1750.85,0.0002,2]
[406686116,1772077847228,-353.45,0.0002,2]
[406686117,1772077848833,-250.0,0.00016872,2]
[406686118,1772077848843,-250.0,0.00016872,2]
[406686119,1772077848852,-250.0,0.00016872,2]
[406686120,1772077848861,-250.0,0.00016872,2]
[406686121,1772077848872,-250.0,0.00016872,2]
[406686122,1772077848882,-250.0,0.00016872,2]
[406686123,1772077848892,-250.0,0.00016872,2]
[406686124,1772077848902,-250.0,0.00016872,2]
[406686125,1772077848911,-668.65185758,0.0001742,2]
[406686126,1772077848921,-11681.91321231,0.0002,2]
[406686128,1772078210424,1017.26,0.000157,120]
[406686129,1772078438310,4506.27188583,0.00012001,2]
[406686130,1772078443536,-1995.55664465,0.00012173,2]
[406686131,1772078443564,-294.60164816,0.00012296,2]
[406686132,1772078472777,-299.39835184,0.00012296,2]
[406686133,1772078472809,-268.68224948,0.00012609,2]
[406686134,1772078472837,-194.7,0.000128,2]
[406686135,1772078472865,-263.99544201,0.00012869,2]
[406686136,1772078502075,-214.338282,0.00012526,2]
[406686137,1772078502101,-36.00455799,0.00012869,2]
[406686138,1772078502127,-61.49327318,0.00012869,2]
[406686139,1772078502202,-71.20605936,0.00012869,2]
[406686140,1772078531867,-311.83611317,0.000125,2]
[406686141,1772078553560,-2500.0,0.0002,120]
[406686142,1772078553611,-735.20906442,0.0002,120]
[406686143,1772078553637,-289.79093558,0.00020349,120]
[406686144,1772078553892,-534.20906442,0.00020349,120]
[406686145,1772078553923,-495.0,0.00020349,120]
[406686146,1772078553944,-297.0,0.00020349,120]
[406686147,1772078553966,-178.0,0.00020349,120]
[406686148,1772078553988,-178.0,0.00020349,120]
[406686149,1772078554010,-180.0,0.00020349,120]
[406686150,1772078554031,-161.0,0.00020349,120]
[406686151,1772078554052,-162.0,0.00020349,120]
[406686152,1772078554072,-162.0,0.00020349,120]
[406686153,1772078554094,-518.26110715,0.000204,120]
[406686154,1772078554140,-890.73889285,0.000204,120]
[406686155,1772078554163,-845.0,0.000204,120]
[406686156,1772078554183,-507.0,0.000204,120]
[406686157,1772078554205,-52.26110715,0.000204,120]
[406686158,1772078554261,-252.73889285,0.000204,120]
[406686159,1772078554281,-183.0,0.000204,120]